bitfinex/quotes_SOLUSD_20241122
["timestamp","ask_amount","ask_price","bid_price","bid_amount"]
[1732281892223,18.41539449,254.45,254.26,0.19664389]
[1732281892418,18.41539449,254.43,254.26,0.19664389]
[1732281892638,18.41539449,254.45,254.26,0.19664389]
[1732281893152,23.0864759,254.44,254.25,34.56574378]
[1732281893647,23.0864759,254.46,254.25,34.56574378]
[1732281893850,23.0864759,254.44,254.26,20.0]
[1732281894143,23.0864759,254.45,254.3,20.0]
[1732281894526,23.0864759,254.42,254.3,20.0]
[1732281894847,23.0864759,254.48,254.3,20.0]
[1732281895052,0.73695702,254.47,254.3,20.0]
[1732281895221,0.7369556,254.51,254.32,20.0]
[1732281895527,0.73687906,254.64,254.4,20.0]
[1732281895733,0.73656252,254.73,254.44,20.0]
[1732281895921,0.73656252,254.73,254.31,43.3381]
[1732281895922,0.73656252,254.73,254.46,20.0]
[1732281896319,0.73656252,254.73,254.48,33.1229]
[1732281896523,23.0864759,254.68,254.5,20.0]
[1732281896747,0.73640521,254.67,254.5,20.0]
[1732281897451,23.0864759,254.66,254.5,20.0]
[1732281897650,0.73649673,254.65,254.5,20.0]
[1732281897825,23.0864759,254.61,254.5,20.0]
[1732281898144,0.73668249,254.6,254.5,20.0]
[1732281899250,0.73651949,254.62,254.5,20.0]
[1732281899421,23.0864759,254.61,254.5,20.0]
[1732281899628,0.7366248,254.6,254.5,20.0]
[1732281899948,23.0864759,254.52,254.38,31.6965]
[1732281900123,0.73690122,254.51,254.38,31.6965]
[1732281900324,0.73687169,254.53,254.38,31.6965]
[1732281902432,0.73645528,254.65,254.49,20.0]
[1732281902755,23.0864759,254.7,254.51,20.0]
[1732281903051,23.0864759,254.74,254.55,52.1059]
[1732281903226,23.0864759,254.78,254.57,20.0]
[1732281903435,0.73609194,254.77,254.59,20.0]
[1732281903828,23.0864759,254.8,254.59,20.0]
[1732281904023,0.73602368,254.79,254.59,20.0]
[1732281904244,0.73602368,254.79,254.61,20.0]
[1732281904457,0.73597325,254.79,254.61,20.0]
[1732281904954,23.0864759,254.74,254.56,20.0]
[1732281905147,0.73619337,254.73,254.56,20.0]
[1732281905344,3.9236,254.87,254.56,20.0]
[1732281905345,23.0864759,254.76,254.56,20.0]
[1732281905531,23.0864759,254.8,254.59,23.776884]
[1732281905735,23.0864759,254.74,254.58,20.0]
[1732281906058,23.0864759,254.66,254.55,32.1059]
[1732281906350,23.0864759,254.66,254.42,19.96037971]
[1732281906351,23.0864759,254.58,254.42,44.18]
[1732281906537,0.73660339,254.57,254.42,44.18]
[1732281906737,23.0864759,254.56,254.42,44.18]
[1732281906933,0.73676113,254.55,254.42,44.18]
[1732281907954,23.0864759,254.52,254.34,6.27178758]
[1732281908131,23.0864759,254.48,254.34,6.27178758]
[1732281908335,0.7369228,254.47,254.33,12.8235]
[1732281908639,23.0864759,254.41,254.25,28.2680849]
[1732281908960,0.737098,254.4,254.26,0.89896731]
[1732281909124,13.0782,254.5,254.26,0.89896731]
[1732281909125,23.0864759,254.44,254.26,0.89896731]
[1732281909325,23.0864759,254.42,254.26,0.89896731]
[1732281909541,23.0864759,254.4,254.26,0.89896731]
[1732281909736,0.73718903,254.39,254.26,0.89896731]
[1732281910830,0.73722607,254.38,254.26,0.89896731]
[1732281911046,0.73727776,254.4,254.26,0.89896731]
[1732281911447,0.73705383,254.44,254.25,28.2680849]
[1732281911752,0.73705383,254.44,254.26,0.19691108]
[1732281911958,0.73701023,254.48,254.27,13.0231]
[1732281912149,0.7369051,254.52,254.28,23.776884]
[1732281912658,0.73678806,254.54,254.3,43.776884]
[1732281912837,0.73670618,254.58,254.3,43.776884]
[1732281913360,37.53175081,254.55,254.3,20.0]
[1732281913560,37.53175081,254.53,254.3,20.0]
[1732281913861,0.73679471,254.52,254.3,20.0]
[1732281914644,37.53175081,254.54,254.3,20.0]
[1732281914845,0.73684472,254.53,254.32,20.0]
[1732281915244,37.53175081,254.52,254.32,20.0]
[1732281915455,0.73687268,254.51,254.32,20.0]
[1732281915641,0.73679204,254.53,254.3,20.0]
[1732281915843,0.73685336,254.55,254.31,23.776884]
[1732281916044,0.73685336,254.55,254.33,23.776884]
[1732281916340,0.73685336,254.55,254.34,20.0]
[1732281916546,37.53175081,254.54,254.34,20.0]
[1732281916755,37.53175081,254.52,254.3,20.0]
[1732281916933,37.53175081,254.5,254.3,20.0]
[1732281917136,0.73694782,254.49,254.3,20.0]
[1732281918142,37.53175081,254.46,254.29,30.9692]
[1732281918361,0.73702207,254.45,254.29,30.9692]
[1732281918550,37.53175081,254.42,254.29,30.9692]
[1732281918741,0.73719805,254.41,254.29,30.9692]
[1732281918943,37.53175081,254.4,254.29,30.9692]
[1732281919140,0.73729798,254.39,254.29,30.9692]
[1732281919769,0.73714191,254.41,254.29,30.9692]
[1732281920067,0.7370115,254.43,254.29,30.9692]
[1732281920252,0.73705684,254.45,254.29,30.9692]
[1732281920940,37.53175081,254.42,254.29,30.9692]
[1732281921165,0.73705684,254.45,254.29,30.9692]
[1732281921166,37.53175081,254.4,254.29,30.9692]
[1732281921343,37.53175081,254.38,254.29,30.9692]
[1732281921537,37.53175081,254.33,254.13,12.3202]
[1732281921742,0.73745907,254.32,254.13,12.3202]
[1732281921937,37.53175081,254.31,254.13,12.3202]
[1732281922157,0.73754419,254.3,254.13,12.3202]
[1732281922445,37.53175081,254.29,254.12,32.1401]
[1732281922768,37.53175081,254.27,254.12,32.1401]
[1732281922941,0.73763623,254.26,254.16,6.18741723]
[1732281923142,0.73763623,254.26,254.12,32.1401]
[1732281923342,0.73758421,254.28,254.12,32.1401]
[1732281923551,37.53175081,254.27,254.12,32.1401]
[1732281923745,0.73764002,254.26,254.12,32.1401]
[1732281924944,0.7375627,254.28,254.12,32.1401]
[1732281925742,0.73746435,254.33,254.12,32.1401]
[1732281926741,37.53175081,254.32,254.12,32.1401]
[1732281926948,37.53175081,254.3,254.12,32.1401]
[1732281927141,37.53175081,254.34,254.12,32.33801786]
[1732281927444,0.73741004,254.4,254.23,12.4203]
[1732281927644,37.53175081,254.4,254.23,12.4203]
[1732281927849,0.73728132,254.39,254.23,12.4203]
[1732281928060,37.53175081,254.34,254.23,12.4203]
[1732281928379,0.73735917,254.33,254.23,12.4203]
[1732281928546,0.7373131,254.37,254.23,12.4203]
[1732281928947,0.73728036,254.41,254.23,12.4203]
[1732281929266,37.53175081,254.4,254.23,12.4203]
[1732281929504,37.53175081,254.38,254.25,27.7680849]
[1732281929669,0.73736768,254.37,254.25,27.7680849]
[1732281930249,37.53175081,254.36,254.25,27.7680849]
[1732281930558,0.73738661,254.35,254.25,27.7680849]
[1732281931361,37.53175081,254.34,254.25,27.7680849]
[1732281931566,0.73745875,254.33,254.25,27.7680849]
[1732281932081,37.53175081,254.32,254.25,27.7680849]
[1732281932254,0.73753299,254.31,254.25,27.7680849]
[1732281932852,0.7374569,254.34,254.25,27.7680849]
[1732281933373,23.10456461,254.33,254.25,27.7680849]
[1732281933563,23.10456461,254.41,254.25,27.7680849]
[1732281933564,23.10456461,254.31,254.25,27.7680849]
[1732281933752,0.73754893,254.3,254.25,27.7680849]
[1732281934370,23.10456461,254.27,254.25,27.7680849]
[1732281934576,0.7376257,254.26,254.25,27.7680849]
[1732281935575,23.10456461,254.29,254.25,27.7680849]
[1732281935576,0.73761923,254.28,254.25,27.7680849]
[1732281936568,0.73754832,254.32,254.25,27.7680849]
[1732281937752,23.10456461,254.42,254.25,27.7680849]
[1732281937954,0.73720407,254.41,254.25,27.7680849]
[1732281938172,23.10456461,254.4,254.25,27.7680849]
[1732281938382,0.73726106,254.39,254.25,27.7680849]
[1732281938569,23.10456461,254.38,254.25,27.7680849]
[1732281938764,0.73725901,254.37,254.25,27.7680849]
[1732281939367,23.10456461,254.36,254.25,27.7680849]
[1732281939562,23.10456461,254.34,254.25,27.7680849]
[1732281939775,0.73742962,254.33,254.25,27.7680849]
[1732281940477,23.10456461,254.32,254.25,27.7680849]
[1732281940651,0.73747396,254.31,254.25,27.7680849]
[1732281941576,0.73748364,254.3,254.25,27.7680849]
[1732281941880,0.73748382,254.33,254.25,27.7680849]
[1732281942678,0.73745203,254.32,254.25,27.7680849]
[1732281942872,23.84201664,254.32,254.25,27.7680849]
[1732281943184,23.10456461,254.3,254.25,27.7680849]
[1732281943352,0.7376128,254.29,254.25,27.7680849]
[1732281943681,23.10456461,254.3,254.25,27.7680849]
[1732281943867,23.10456461,254.28,254.25,27.7680849]
[1732281944065,0.73761596,254.27,254.25,27.7680849]
[1732281944892,23.10456461,254.26,254.25,27.7680849]
[1732281945178,23.84227869,254.26,254.25,27.7680849]
[1732281946963,26.34227869,254.26,254.25,27.7680849]
[1732281947382,23.84227869,254.26,254.25,27.7680849]
[1732281948791,28.90657256,254.26,254.25,27.7680849]
[1732281948961,23.10456461,254.17,254.06,23.776884]
[1732281949156,0.73792495,254.16,254.06,23.776884]
[1732281949569,0.73785618,254.18,254.06,23.776884]
[1732281951382,23.10456461,254.15,254.05,1.005]
[1732281951691,11.49729387,254.26,254.05,1.005]
[1732281951692,23.10456461,254.13,254.05,1.005]
[1732281951893,0.73794664,254.12,254.05,1.005]
[1732281952261,23.10456461,254.11,254.05,1.005]
[1732281952485,0.73806084,254.1,254.05,1.005]
[1732281953165,23.10456461,254.19,254.06,44.8799]
[1732281953384,0.73785827,254.18,254.06,44.8799]
[1732281953784,32.5406,254.33,254.06,44.8799]
[1732281953785,0.73785833,254.27,254.06,44.8799]
[1732281953987,23.10456461,254.24,254.06,44.8799]
[1732281954168,0.73773007,254.23,254.06,44.8799]
[1732281954374,23.10456461,254.22,254.07,23.776884]
[1732281954577,23.10456461,254.2,254.07,23.776884]
[1732281954791,0.73780129,254.19,254.07,23.776884]
[1732281955094,0.73778791,254.27,254.09,23.776884]
[1732281955396,23.10456461,254.23,254.06,44.8799]
[1732281955569,2.5,254.36,254.06,44.8799]
[1732281955570,0.73785073,254.22,254.06,44.8799]
[1732281955887,0.73770175,254.24,254.06,44.8799]
[1732281956277,0.73759303,254.28,254.06,44.8799]
[1732281956479,0.73759303,254.28,254.09,20.0]
[1732281956678,23.10456461,254.27,254.1,23.776884]
[1732281956876,0.73759303,254.28,254.06,44.8799]
[1732281956877,23.10456461,254.14,254.06,44.8799]
[1732281957070,0.73792484,254.13,254.06,44.8799]
[1732281957691,23.14042522,254.28,254.06,44.8799]
[1732281957692,0.73796235,254.16,254.06,44.8799]
[1732281958275,0.73799291,254.18,254.06,44.8799]
[1732281959186,0.73799291,254.18,254.07,23.776884]
[1732281959573,0.73791785,254.17,254.07,23.776884]
[1732281959774,0.73791775,254.2,254.07,23.776884]
[1732281960199,23.14042522,254.19,254.07,23.776884]
[1732281960489,23.14042522,254.17,254.06,44.8799]
[1732281960791,0.73800879,254.16,254.06,44.8799]
[1732281961093,23.14042522,254.15,254.05,1.005]
[1732281961291,0.73809109,254.14,254.05,1.005]
[1732281961472,0.73800871,254.16,254.05,1.005]
[1732281961674,0.73793594,254.2,254.05,1.005]
[1732281961878,0.73779469,254.24,254.05,1.005]
[1732281962396,0.73779469,254.24,254.06,23.776884]
[1732281962692,0.73779469,254.24,254.08,56.269384]
[1732281962875,0.73758713,254.3,254.08,56.269384]
[1732281963071,0.73758713,254.3,254.08,56.4676593]
[1732281963270,0.73751732,254.34,254.08,56.4676593]
[1732281963473,0.73751732,254.34,254.08,56.269384]
[1732281963677,23.14042522,254.33,254.08,56.269384]
[1732281963878,0.73755631,254.32,254.08,56.269384]
[1732281964280,23.14042522,254.31,254.08,56.269384]
[1732281964492,0.73754234,254.3,254.08,56.269384]
[1732281965083,23.87796756,254.3,254.08,56.269384]
[1732281965285,23.14042522,254.28,254.08,56.269384]
[1732281965475,23.14042522,254.24,254.08,36.269384]
[1732281965678,23.14042522,254.15,254.05,1.005]
[1732281965884,0.73808435,254.14,254.05,1.005]
[1732281966208,0.73790204,254.26,254.05,1.005]
[1732281966701,15.713528,254.17,254.05,1.005]
[1732281967079,15.713528,254.17,254.08,23.776884]
[1732281967302,0.73790204,254.26,254.1,23.776884]
[1732281967490,15.710787,254.26,254.12,23.776884]
[1732281967679,15.710787,254.26,254.13,20.0]
[1732281968007,0.73759053,254.3,254.16,23.776884]
[1732281968182,15.706405,254.31,254.23,20.0]
[1732281968515,0.73737574,254.44,254.25,20.0]
[1732281968684,15.700452,254.43,254.28,43.776884]
[1732281969005,0.73710378,254.47,254.28,43.776884]
[1732281969209,15.696874,254.49,254.3,23.776884]
[1732281969409,0.73701035,254.48,254.31,20.0]
[1732281969588,0.73701035,254.48,254.3,43.776884]
[1732281969900,0.73701035,254.48,254.32,23.776884]
[1732281970106,23.85865413,254.48,254.33,23.776884]
[1732281970311,23.12164378,254.43,254.3,23.776884]
[1732281970476,0.73722522,254.42,254.3,23.776884]
[1732281971083,0.73713885,254.45,254.3,23.776884]
[1732281971404,0.73713885,254.45,254.32,23.776884]
[1732281971593,0.73713885,254.45,254.34,23.776884]
[1732281971797,0.73700653,254.48,254.34,23.776884]
[1732281972287,0.73700653,254.48,254.29,12.434]
[1732281972288,0.73700653,254.48,254.36,23.776884]
[1732281972484,0.73688459,254.47,254.36,23.776884]
[1732281972697,0.73688459,254.47,254.29,12.434]
[1732281972905,0.73711725,254.48,254.3,20.0]
[1732281973204,15.695992,254.52,254.3,20.0]
[1732281973407,0.73690691,254.51,254.3,20.0]
[1732281973794,37.52791194,254.58,254.32,2.49999999]
[1732281973989,0.73678053,254.57,254.34,20.0]
[1732281974198,37.52791194,254.56,254.36,20.0]
[1732281974385,0.73690834,254.55,254.36,20.0]
[1732281975284,37.52791194,254.53,254.36,20.0]
[1732281975486,0.73693538,254.52,254.38,20.0]
[1732281975894,0.73693538,254.52,254.32,20.0]
[1732281976105,37.52791194,254.51,254.32,20.0]
[1732281976292,0.73704242,254.5,254.32,20.0]
[1732281977610,0.73704242,254.5,254.34,20.0]
[1732281977791,0.7368396,254.52,254.37,23.776884]
[1732281977987,0.73678547,254.54,254.4,20.0]
[1732281978188,0.73671925,254.58,254.44,20.0]
[1732281978394,0.73671925,254.58,254.46,20.0]
[1732281978593,0.73671925,254.58,254.45,23.776884]
[1732281978594,37.52791194,254.63,254.49,23.776884]
[1732281978820,37.52791194,254.67,254.53,23.776884]
[1732281979113,0.73648413,254.66,254.55,23.776884]
[1732281979299,0.73648413,254.66,254.53,23.776884]
[1732281979300,0.73648413,254.66,254.54,20.0]
[1732281979615,0.73648413,254.66,254.48,43.4804]
[1732281979616,37.52791194,254.61,254.48,43.4804]
[1732281979925,0.73648413,254.66,254.48,43.4804]
[1732281979926,37.52791194,254.59,254.49,20.0]
[1732281980092,38.26468857,254.58,254.49,20.0]
[1732281980292,0.73677663,254.58,254.49,20.0]
[1732281980509,0.73658803,254.66,254.49,20.0]
[1732281980813,38.26449997,254.66,254.49,20.0]
[1732281981024,37.52791194,254.62,254.49,20.0]
[1732281981196,0.73664341,254.61,254.51,20.0]
[1732281981396,0.73657459,254.63,254.51,20.0]
[1732281982032,37.52791194,254.62,254.51,20.0]
[1732281982218,37.52791194,254.56,254.48,43.4804]
[1732281982424,0.73678374,254.55,254.48,43.4804]
[1732281982803,37.52791194,254.54,254.48,43.4804]
[1732281983017,0.73679924,254.53,254.35,44.5169]
[1732281983697,0.73679924,254.53,254.36,20.0]
[1732281983898,37.52791194,254.51,254.35,44.5169]
[1732281984107,37.52791194,254.49,254.35,44.5169]
[1732281984299,37.52791194,254.44,254.35,44.5169]
[1732281984519,0.73717487,254.43,254.35,44.5169]
[1732281985111,37.52791194,254.42,254.35,44.5169]
[1732281985416,0.7371527,254.41,254.35,44.5169]
[1732281986007,37.52791194,254.46,254.35,44.5169]
[1732281986208,0.73706291,254.45,254.35,44.5169]
[1732281986417,0.73706291,254.45,254.36,23.776884]
[1732281986617,0.73706291,254.45,254.35,44.5169]
[1732281987100,0.73706291,254.45,254.36,43.776884]
[1732281987303,0.7369976,254.48,254.36,43.776884]
[1732281987811,0.73681718,254.52,254.36,43.776884]
[1732281988916,37.52791194,254.54,254.36,43.776884]
[1732281989121,0.7368511,254.53,254.36,43.776884]
[1732281989626,37.52791194,254.52,254.35,44.5169]
[1732281989935,0.73696951,254.51,254.36,23.776884]
[1732281990104,0.73681866,254.53,254.36,23.776884]
[1732281991101,37.52791194,254.56,254.36,23.776884]
[1732281991102,0.73676631,254.55,254.36,23.776884]
[1732281991302,0.73676631,254.55,254.38,23.776884]
[1732281991620,0.73676631,254.55,254.41,20.0]
[1732281991920,0.73676631,254.55,254.43,20.0]
[1732281992113,38.26467825,254.55,254.36,23.776884]
[1732281992299,37.52791194,254.52,254.35,44.5169]
[1732281992500,0.73695594,254.51,254.35,44.5169]
[1732281992910,2.5,254.63,254.35,44.5169]
[1732281992911,23.07407646,254.55,254.35,44.5169]
[1732281993231,0.73673183,254.54,254.37,2.49999999]
[1732281993519,0.73673183,254.54,254.39,20.0]
[1732281993728,0.73673183,254.54,254.41,20.0]
[1732281994025,23.07407646,254.51,254.43,20.0]
[1732281994236,23.07407646,254.49,254.37,23.776884]
[1732281994411,0.73689766,254.48,254.36,20.0]
[1732281994607,0.73688075,254.5,254.36,20.0]
[1732281995507,23.07407646,254.53,254.38,20.0]
[1732281995700,23.07407646,254.55,254.41,23.776884]
[1732281995905,23.07407646,254.59,254.45,23.776884]
[1732281996118,0.7366512,254.58,254.48,20.0]
[1732281996314,23.07407646,254.57,254.47,23.776884]
[1732281996522,0.7366672,254.56,254.48,20.0]
[1732281997431,23.07407646,254.65,254.51,36.300684]
[1732281997612,0.73650983,254.64,254.52,20.0]
[1732281997813,0.73650983,254.64,254.52,50.5085]
[1732281998018,23.07407646,254.63,254.52,50.5085]
[1732281998227,0.73651521,254.62,254.52,50.5085]
[1732281998427,0.73651521,254.62,254.53,23.776884]
[1732281998604,0.73642791,254.64,254.56,20.0]
[1732281998803,0.73642791,254.64,254.55,23.776884]
[1732281999026,0.73642791,254.64,254.56,20.0]
[1732281999326,0.7364744,254.66,254.58,20.0]
[1732281999503,38.75995346,254.69,254.52,30.5085]
[1732281999504,23.07407646,254.63,254.52,30.5085]
[1732281999702,23.07407646,254.61,254.53,20.0]
[1732281999925,0.73659068,254.6,254.53,20.0]
[1732282000321,0.73659068,254.6,254.44,30.5085]
[1732282000322,23.07407646,254.59,254.44,30.5085]
[1732282000529,0.73671186,254.58,254.44,30.5085]
[1732282001012,0.73659549,254.6,254.44,30.5085]
[1732282001215,23.07407646,254.61,254.44,30.5085]
[1732282001515,0.73651266,254.6,254.44,30.5085]
[1732282001714,0.7365221,254.62,254.45,20.0]
[1732282002114,23.07407646,254.61,254.48,23.776884]
[1732282002341,0.73656174,254.6,254.51,20.0]
[1732282002514,23.07407646,254.64,254.53,20.0]
[1732282002709,23.07407646,254.62,254.53,20.0]
[1732282002909,0.73651146,254.61,254.53,20.0]
[1732282003226,0.73651066,254.63,254.53,20.0]
[1732282003611,0.73651066,254.63,254.46,23.776884]
[1732282003824,0.73651066,254.63,254.49,20.0]
[1732282004107,0.73651066,254.63,254.52,23.776884]
[1732282004308,23.07407646,254.65,254.53,20.0]
[1732282004610,0.73647454,254.64,254.53,20.0]
[1732282005109,23.07407646,254.65,254.55,20.0]
[1732282005433,23.07407646,254.71,254.59,43.776884]
[1732282005616,23.07407646,254.67,254.59,20.0]
[1732282005818,23.07407646,254.65,254.59,20.0]
[1732282006026,23.07407646,254.63,254.51,19.15763415]
[1732282006321,0.73652411,254.62,254.51,13.0327]
[1732282006521,23.07407646,254.65,254.52,23.776884]
[1732282006729,0.73645021,254.64,254.52,23.776884]
[1732282007627,23.07407646,254.59,254.44,30.5085]
[1732282007828,0.7366404,254.58,254.44,30.5085]
[1732282008330,23.07407646,254.59,254.44,36.69951826]
[1732282008522,0.73653474,254.58,254.44,36.69951826]
[1732282008735,23.07407646,254.64,254.44,36.69951826]
[1732282008926,0.73649673,254.63,254.45,23.776884]
[1732282009235,0.73649673,254.63,254.41,17.28959999]
[1732282009236,0.73649673,254.63,254.41,2.5]
[1732282009423,2.5,254.32,254.15,6.35299805]
[1732282009626,23.07407646,254.27,254.03,15.706471]
[1732282009928,23.07407646,254.33,254.06,0.19756907]
[1732282010131,23.07407646,254.31,254.06,5.16087596]
[1732282011117,23.07407646,254.27,254.06,4.96330689]
[1732282011311,23.07407646,254.23,254.06,4.96330689]
[1732282011513,23.07407646,254.25,254.06,11.13662077]
[1732282011837,23.07407646,254.25,254.06,4.96330689]
[1732282012068,0.73744581,254.41,254.06,4.96330689]
[1732282012069,23.07407646,254.21,254.06,4.96330689]
[1732282012216,23.07407646,254.21,254.06,12.3978]
[1732282012912,23.07407646,254.19,254.07,20.0]
[1732282013231,0.73756395,254.25,254.07,20.19829951]
[1732282013440,23.07407646,254.22,254.07,0.19829951]
[1732282013742,2.5,254.28,254.07,0.19829951]
[1732282013743,23.07407646,254.26,254.07,0.19829951]
[1732282014126,25.57407646,254.28,254.07,0.19829951]
[1732282014330,23.07407646,254.34,254.07,28.66404596]
[1732282014526,23.07407646,254.34,254.1,20.0]
[1732282014824,23.07407646,254.34,254.15,23.776884]
[1732282015131,23.07407646,254.34,254.18,20.0]
[1732282015342,23.07407646,254.32,254.18,20.0]
[1732282015514,23.07407646,254.3,254.18,20.0]
[1732282015718,23.07407646,254.32,254.16,20.0]
[1732282015922,23.07407646,254.34,254.18,20.0]
[1732282016435,23.07407646,254.34,254.19,23.776884]
[1732282016629,23.07407646,254.34,254.2,20.0]
[1732282017020,23.07407646,254.36,254.2,20.0]
[1732282017317,5.0,254.37,254.19,23.776884]
[1732282017318,23.07407646,254.33,254.19,20.0]
[1732282017631,2.5,254.33,254.19,20.0]
[1732282018015,2.5,254.35,254.19,20.0]
[1732282018420,25.57407646,254.38,254.19,20.0]
[1732282018616,0.73719355,254.37,254.19,20.0]
[1732282018835,3.23719355,254.37,254.19,20.0]
[1732282019031,2.5,254.37,254.19,20.0]
[1732282019235,0.73720253,254.46,254.2,23.776884]
[1732282019236,2.5,254.39,254.2,23.776884]
[1732282019415,23.07407646,254.4,254.2,23.776884]
[1732282019416,23.07407646,254.4,254.22,23.776884]
[1732282019742,23.07407646,254.4,254.26,20.0]
[1732282020117,25.57407646,254.4,254.26,20.0]
[1732282020320,25.57407646,254.34,254.26,20.0]
[1732282020539,23.07407646,254.28,254.17,12.8292]
[1732282020839,2.5,254.23,254.11,31.1828]
[1732282021041,0.73757269,254.23,254.11,31.1828]
[1732282021240,2.5,254.22,254.11,31.1828]
[1732282021535,2.5,254.19,254.09,12.5051]
[1732282021718,28.07407646,254.22,254.09,12.5051]
[1732282022354,2.5,254.17,254.09,12.5051]
[1732282022641,0.73779997,254.16,254.09,12.5051]
[1732282022944,25.57407646,254.16,254.09,12.5051]
[1732282023241,2.5,254.12,254.05,1.005]
[1732282023429,2.5,254.27,254.05,1.005]
[1732282023430,2.5,254.16,254.05,1.005]
[1732282023634,2.5,254.07,254.05,1.005]
[1732282023815,2.5,254.08,254.05,1.005]
[1732282024019,3.2380438,254.08,254.05,1.005]
[1732282024220,2.5,254.06,254.05,1.005]
[1732282024457,3.23813674,254.06,254.05,1.005]
[1732282025456,3.23813674,254.06,254.0,11.0]
[1732282025457,5.0,254.01,254.0,11.0]
[1732282025619,28.81255793,254.01,254.0,11.0]
[1732282025820,52.58944193,254.01,254.0,11.0]
[1732282026544,5.73848147,254.01,254.0,11.0]
[1732282026758,5.0,253.88,253.76,6.19031957]
[1732282027079,5.0,253.88,253.71,0.2001146]
[1732282027080,2.5,253.86,253.71,0.2001146]
[1732282027419,0.7386601,253.89,253.71,6.41434231]
[1732282027744,25.57407646,253.97,253.71,6.41434231]
[1732282027938,2.5,253.97,253.71,25.97824533]
[1732282028260,2.0,253.97,253.75,0.5]
[1732282028434,2.5,253.96,253.76,0.20028609]
[1732282028622,2.0,253.9,253.72,23.776884]
[1732282028821,2.5,253.91,253.72,20.0]
[1732282028822,2.0,253.88,253.72,20.0]
[1732282029023,4.5,253.88,253.72,20.0]
[1732282029241,3.23861809,253.87,253.71,6.41531324]
[1732282029437,2.5,253.87,253.71,6.41531324]
[1732282029623,2.0,253.86,253.71,6.41531324]
[1732282029829,2.0,253.84,253.71,6.41531324]
[1732282030028,2.0,253.82,253.71,6.21422771]
[1732282030246,2.73881709,253.81,253.7,31.6155]
[1732282030456,0.73881709,253.81,253.7,31.6155]
[1732282030753,2.0,253.79,253.7,31.6155]
[1732282030949,2.73885441,253.82,253.68,0.20167686]
[1732282031146,2.73888872,253.84,253.68,0.20178216]
[1732282031349,2.0,253.82,253.68,0.20178216]
[1732282031534,2.0,253.84,253.68,0.20178216]
[1732282031848,2.0,253.82,253.68,0.20178216]
[1732282032057,0.73878563,253.81,253.67,19.35493448]
[1732282032430,2.0,253.8,253.67,19.35493448]
[1732282032828,2.0,253.8,253.68,20.0]
[1732282033032,2.0,253.78,253.67,6.17813448]
[1732282033336,2.0,253.78,253.6,0.20150795]
[1732282033662,2.0,253.75,253.6,6.60071749]
[1732282033829,2.0,253.73,253.6,0.20150795]
[1732282034031,2.0,253.73,253.59,0.20217238]
[1732282034432,2.0,253.71,253.58,51.07539594]
[1732282034754,2.0,253.69,253.58,51.07539594]
[1732282034938,2.0,253.67,253.58,51.07539594]
[1732282035257,2.0,253.71,253.58,6.41369594]
[1732282035437,2.73913708,253.71,253.49,47.37134147]
[1732282035752,0.73911248,253.74,253.51,19.71361574]
[1732282035929,2.0,253.77,253.55,19.11446119]
[1732282036131,0.73893701,253.8,253.58,24.276884]
[1732282036431,12.326,253.91,253.57,19.8396377]
[1732282036432,2.0,253.83,253.65,20.0]
[1732282036734,2.0,253.83,253.67,20.0]
[1732282036940,2.0,253.79,253.54,0.5]
[1732282037155,2.0,253.81,253.58,24.276884]
[1732282037349,2.73884203,253.81,253.59,23.97854199]
[1732282037552,4.5,253.77,253.59,23.97854199]
[1732282037758,2.0,253.73,253.59,0.20165799]
[1732282037932,2.0,253.73,253.49,64.80871778]
[1732282038131,0.73906413,253.72,253.5,0.20224877]
[1732282038357,0.73908648,253.74,253.5,1.20224877]
[1732282038672,0.73908648,253.74,253.49,50.53288636]
[1732282038673,39.1648775,253.67,253.49,50.53288636]
[1732282038834,2.5,253.65,253.49,50.53288636]
[1732282039034,2.23920124,253.64,253.49,6.19563759]
[1732282039358,0.73920124,253.64,253.42,1.0]
[1732282039583,37.6648775,253.69,253.44,20.61542757]
[1732282039584,0.73925525,253.68,253.44,20.61542757]
[1732282039734,0.739185,253.69,253.44,20.61542757]